Cogmind - Beta 16 @@@ ROGUE MODE // 2025.10.30 @ 17:27:43 Player: kim.jet.wav Result: Self-destructed Performance ------------- Evolutions (1) 500 Regions Visited (2) 400 Robots Destroyed (25) 125 Value Destroyed (504) 504 Prototype IDs (0) 0 Alien Tech Used (0) 0 Bonus (0) 0 TOTAL SCORE: 1529 Bonus ------- None Cogmind --------- Core Integrity 362/400 Matter 215/300 Energy 247/250 System Corruption 0% Temperature Cool (0) Movement Walking (120) Location -9/Materials Parts ------- > --- POWER (1) -------- Ion Engine > --- PROPULSION (3) --- Aluminum Leg Aluminum Leg Aluminum Leg > --- UTILITY (3) ------ Small Storage Unit Seismic Detector Hacking Suite > --- WEAPON (2) ------- Small Laser Shotgun > --- INVENTORY (8) ---- Aluminum Leg Aluminum Leg Cooling System Medium Laser Beam Cannon Datajack Peak State ------------ > --- POWER ------------ Ion Engine > --- PROPULSION ------- Aluminum Leg Aluminum Leg Aluminum Leg > --- UTILITY ---------- Small Storage Unit Seismic Detector Hacking Suite > --- WEAPON ----------- Medium Laser Shotgun > --- INVENTORY -------- Aluminum Leg Aluminum Leg Cooling System Beam Cannon Datajack [Rating: 12] Favorites ----------- Power Ion Engine Engine Ion Engine Propulsion Aluminum Leg Leg Aluminum Leg Utility Small Storage Unit Device Seismic Detector Storage Small Storage Unit Hackware Hacking Suite Weapon Medium Laser Energy Gun Medium Laser Energy Cannon Beam Cannon Ballistic Gun Shotgun Build | -11 -10 -9 ------- Run | Yrd Mat Mat Slots Evolved 2 | . . 2 Power . | . . . Propulsion 1 | . . 1 Utility 1 | . . 1 Weapon . | . . . Parts Attached 19 | 7 9 3 Power 4 | 1 3 . Engine 4 | 1 3 . Core . | . . . Reactor . | . . . Propulsion 6 | 2 4 . Treads . | . . . Leg 6 | 2 4 . Wheel . | . . . Hover . | . . . Flight . | . . . Utility 4 | 2 1 1 Device 2 | 1 1 . Storage 1 | 1 . . Processor . | . . . Hackware 1 | . . 1 Protection . | . . . Artifact . | . . . Weapon 5 | 2 1 2 Energy Gun 3 | 2 . 1 Energy Cannon 1 | . 1 . Ballistic Gun 1 | . . 1 Ballistic Cannon . | . . . Launcher . | . . . Special Weapon . | . . . Impact Weapon . | . . . Slashing Weapon . | . . . Piercing Weapon . | . . . Special Melee Weapon . | . . . Unidentified Prototypes . | . . . Parts Lost . | . . . Power . | . . . Propulsion . | . . . Utility . | . . . Weapon . | . . . Highest Loss Streak . | . . . To Critical Strikes . | . . . Average Backups 3 | . 3 5 Power . | . . . Propulsion 1 | . 1 2 Utility . | . . . Weapon . | . . 1 Tool/Special . | . . . Unused Backups 2 | . . 2 Power . | . . . Propulsion . | . . . Utility 1 | . . 1 Weapon . | . . . Tool/Special 1 | . . 1 Average Slot Usage (%) 98 | . 98 96 Engine 13 | . 14 11 Leg 28 | . 28 31 Device 13 | . 14 11 Storage 13 | . 14 11 Hackware 1 | . . 9 Energy Gun 21 | . 23 11 Energy Cannon 3 | . 3 3 Ballistic Gun 1 | . . 7 Peak Build Rating 12 | 7 7 12 Average Rating 7 | 5 6 11 On Entrance 4 | . 7 7 Avg Prop Armor Cover (%) . | . . . Naked Turns . | . . . Heaviest Build 16 | 13 16 16 Greatest Support 30 | 20 20 30 Greatest Overweight (x) 1 | 1 1 . Average Overweight (x) . | . . . Largest Inventory Capacity 8 | 8 8 8 Average Capacity 7 | 7 8 8 Most Carried 7 | 1 7 6 Average Carried 3 | . 3 5 Final Capacity 8 | 8 8 8 Final Carried 6 | 1 6 6 Class Distribution -------------------- 100% | Mutant Dominant Class ---------------- Mutant | -10/Materials Mutant | -9/Materials Resources | -11 -10 -9 ----------- Run | Yrd Mat Mat Matter Collected 445 | 270 120 55 Remotely . | . . . Salvage Created 668 | 111 372 185 Parts 41 | 7 17 17 Haulers Intercepted . | . . . Recyclers Shooed 2 | 1 1 . Parts Field Recycled . | . . . Retrieved Matter . | . . . Parts Self-Destructed . | . . . Prevented . | . . . Parts Restored . | . . . Kills | -11 -10 -9 ------- Run | Yrd Mat Mat Combat Hostiles Destroyed 18 | . 9 9 Guns 17 | . 8 9 Cannons 1 | . 1 . Classes Destroyed 7 | 2 4 1 Tunneler 2 | 2 . . Recycler 1 | 1 . . Operator 1 | . 1 . Watcher 3 | . 3 . Swarmer 9 | . 3 6 Grunt 8 | . 6 2 Sentry 1 | . . 1 Best Kill Streak 6 | 3 3 6 Combat Bots Only 6 | . 3 6 Max Kills in Single Turn 2 | 1 1 2 Gunslinging 1 | . . 1 Exploded . | . . . Melee . | . . . Uniques/NPCs Destroyed . | . . . Combat | -11 -10 -9 -------- Run | Yrd Mat Mat Hostile Shots Fired 123 | . 82 41 Missed 26 | . 13 13 Hits 97 | . 69 28 Projectile 97 | . 69 28 Critical Strikes 1 | . 1 . Damage Taken 940 | . 665 275 Core 196 | . 158 38 Absorbed by Shields . | . . . Regen/Repaired (Parts) 51 | . 51 . Core Remaining (%) 68 | 100 36 . Volleys Fired 71 | 6 50 15 Largest 2 | 2 2 2 Hottest 110 | 100 110 73 Shots Fired 136 | 12 94 30 Gun 122 | 12 80 30 Cannon 14 | . 14 . Launcher . | . . . Special . | . . . Kinetic 15 | . . 15 Thermal 121 | 12 94 15 Explosive . | . . . Electromagnetic . | . . . Robot Hit Streak 15 | 6 8 15 Robot Miss Streak 6 | 1 6 3 Penetration Max . | . . . Secondary Targets 4 | . 1 3 Max Gunslinging Chain 1 | . 1 1 Shots Hit Robots 80 | 8 46 26 Core Hits 37 | 4 21 12 Critical Kills . | . . . Critical Parts Destroyed . | . . . Critical Strikes 6 | . 3 3 Burn 6 | . 3 3 Melee Attacks . | . . . Impact . | . . . Slashing . | . . . Piercing . | . . . Sneak Attacks . | . . . Combat Hostiles . | . . . Follow-up Attacks . | . . . Damage Inflicted 1111 | 101 649 361 Guns 989 | 101 527 361 Cannons 122 | . 122 . Explosions . | . . . Melee . | . . . Ramming . | . . . Kinetic 223 | . . 223 Thermal 888 | 101 649 138 Explosive . | . . . Electromagnetic . | . . . Impact . | . . . Slashing . | . . . Piercing . | . . . Highest Corruption . | . . . Average Corruption . | . . . Corruption Purged . | . . . Corruption Blocked . | . . . Overload Shots . | . . . Overflow Damage 4 | . 4 . Projectiles 4 | . 4 . Explosions . | . . . Melee . | . . . Knockbacks . | . . . Impact . | . . . Kinetic . | . . . Secondary . | . . . Self-Inflicted Damage . | . . . Shots . | . . . Rammed . | . . . Targets Rammed . | . . . Kicked . | . . . Crushed . | . . . Highest Temperature 550 | 234 550 30 Average Temperature 149 | 129 179 12 Received Heat Transfer 246 | . 216 30 Effects 11 | . 11 . Shutdowns 2 | . 2 . Energy Bleed 1 | . 1 . Interference 6 | . 6 . Short Circuit 1 | . 1 . Damage (major) 1 | . 1 . Siege Activations . | . . . Martial Activations . | . . . Shielding Activations . | . . . Robots Disrupted . | . . . Combat Hostiles . | . . . Robots Corrupted . | . . . Combat Hostiles . | . . . Parts Fried . | . . . Impact Corruptions . | . . . Robots Melted . | . . . Combat Hostiles . | . . . Parts Melted 5 | 1 4 . Heat Transferred 2960 | 296 2035 629 Parts Sabotaged . | . . . Parts Stolen . | . . . Parts Stripped . | . . . Power Chain Reactions . | . . . Alert | -11 -10 -9 ------- Run | Yrd Mat Mat Maximum Alert Level . | . . . Low Security (%) 100 | 100 100 100 Level 1 . | . . . Level 2 . | . . . Level 3 . | . . . Level 4 . | . . . Level 5 . | . . . High Security . | . . . Max Security . | . . . Peak Influence 193 | 10 55 193 Initial 18 | . . 18 Average 29 | 1 20 102 Influence Increases 489 | 15 249 225 Destroy 0b10 Robot/C 360 | . 180 180 Destroy 0b10 Robot/NC 35 | 15 20 . Destroy Leader 86 | . 46 40 Successful Hack 7 | . 2 5 Destroy Structure 1 | . 1 . Influence Decreases 306 | 15 205 86 Entered New Map 26 | . . 26 Time Decay 280 | 15 205 60 Squads Dispatched 3 | . 2 1 Investigation 2 | . 1 1 Extermination . | . . . Reinforcement 1 | . 1 . Assault . | . . . Garrison . | . . . Intercept . | . . . Searches Triggered . | . . . Construction Impeded . | . . . Haulers Reinforced . | . . . Active Scanning Responses . | . . . Cargo Convoy Interrupts . | . . . Stealth | -11 -10 -9 --------- Run | Yrd Mat Mat Distress Signals 1 | . . 1 Communications Jammed . | . . . Distress Signals . | . . . Times Spotted 29 | . 15 14 Peak Tracking Total 6 | . 4 6 Tactical Retreats . | . . . Traps | -11 -10 -9 ------- Run | Yrd Mat Mat Traps Triggered . | . . . Indirectly . | . . . Trap Hack Attempts . | . . . Triggered . | . . . Disarmed . | . . . Reprogrammed . | . . . Reused . | . . . Traps Extracted . | . . . Installed . | . . . Triggered . | . . . Machines | -11 -10 -9 ---------- Run | Yrd Mat Mat Machines Disabled . | . . . Max in Single Turn . | . . . Machines Repaired . | . . . Machines Dismantled . | . . . Machines Sabotaged . | . . . Overloaded Fab Kills . | . . . Hacking | -11 -10 -9 --------- Run | Yrd Mat Mat Machines Accessed 4 | . 3 1 Terminals 3 | . 2 1 Fabricators . | . . . Repair Stations 1 | . 1 . Recycling Units . | . . . Scanalyzers . | . . . Garrison Access . | . . . Total Hacks 11 | . 9 2 Successful 6 | . 4 2 Failed 5 | . 5 . Catastrophic 2 | . 2 . Database Lockouts . | . . . Manual 6 | . 4 2 Terminals 6 | . 4 2 Fabricators . | . . . Repair Stations 5 | . 5 . Recycling Units . | . . . Scanalyzers . | . . . Garrison Access . | . . . Terminal Hacks . | . . . Fabricator Hacks . | . . . Repair Station Hacks 3 | . 3 . Scan Component 2 | . 2 . Repair 1 | . 1 . Recycling Unit Hacks . | . . . Scanalyzer . | . . . Garrison Access Hacks . | . . . Unauthorized Hacks 3 | . 1 2 Terminals 3 | . 1 2 Assimilate 2 | . 1 1 Sabotage 1 | . . 1 Fabricators . | . . . Repair Stations . | . . . Recycling Units . | . . . Scanalyzers . | . . . Garrison Access . | . . . Data Cores Recovered . | . . . Used . | . . . Hacking Detections 2 | . 2 . Full Trace Events 2 | . 2 . Feedback Events . | . . . Feedback Blocked . | . . . Robot Schematics Acquired . | . . . Robots Built . | . . . Authchips . | . . . Time . | . . . Total Robot Build Rating . | . . . Part Schematics Acquired . | . . . Parts Built . | . . . Authchips . | . . . Time . | . . . Total Part Build Rating . | . . . Part Studies Acquired . | . . . Parts Repaired 1 | . 1 . Time 36 | . 36 . Parts Recycled . | . . . Recycled Matter . | . . . Retrieved Matter . | . . . Retrieved Components . | . . . Parts Scanalyzed . | . . . Part Schematics Acquired . | . . . Parts Damaged . | . . . Bothacking | -11 -10 -9 ------------ Run | Yrd Mat Mat Used RIF Installer . | . . . Robots Hacked . | . . . Non-combat . | . . . Combat . | . . . Robot Hacks Applied . | . . . Relay Couplers Released . | . . . Fabnet Peak Effective % . | . . . Robots Rewired . | . . . Allies Hacked . | . . . Hacks Repelled . | . . . Allies | -11 -10 -9 -------- Run | Yrd Mat Mat Total Allies . | . . . Largest Group . | . . . Highest-Rated Group . | . . . Highest-Rated Ally . | . . . Total Orders . | . . . Ally Attacks . | . . . Total Damage . | . . . Kills . | . . . Allies Corrupted . | . . . Allies Melted . | . . . Intel | -11 -10 -9 ------- Run | Yrd Mat Mat Active Infowar (turns) 827 | 6 698 123 Seismic 827 | 6 698 123 Robot Analysis Total . | . . . Derelict Logs Recovered . | . . . Drone Launches . | . . . Drone Recoveries . | . . . Exploration | -11 -10 -9 ------------- Run | Yrd Mat Mat Turns Passed 925 | 84 718 123 Spaces Moved 464 | 48 373 43 Core 6 | 6 . . Treads . | . . . Legs 458 | 42 373 43 Wheels . | . . . Hover . | . . . Flight . | . . . Fastest Speed 50 | 50 120 120 Average Speed 119 | 113 120 120 Slowest Speed 190 | 120 190 120 Overloaded Moves . | . . . Propulsion Burnouts . | . . . Robots Hopped . | . . . Potential Cave-ins . | . . . Cave-ins Triggered . | . . . Exploration Rate (%) 20 | 3 50 7 Regions Visited 2 Branch Regions . Pre-discovered Areas . | . . . Known Exits Taken . | . . . Unknown Exits Taken 2 | 1 1 . Scrap Searched . | . . . Spaces Dug . | . . . Terrain Destroyed . | . . . Melee . | . . . Projectile . | . . . AOE . | . . . Terrain Rammed . | . . . Walls Destroyed . | . . . Machines Disabled . | . . . Actions | -11 -10 -9 --------- Run | Yrd Mat Mat Total 689 | 62 545 82 Wait 115 | . 101 14 Move 462 | 47 372 43 Hop . | . . . Pick Up 7 | 2 3 2 Fast Attach 7 | 6 1 . Attach 4 | 1 1 2 Detach 1 | . 1 . Swap 16 | . 11 5 Drop 6 | . 5 1 Fire 71 | 6 50 15 Melee . | . . . Ram . | . . . Kick . | . . . Crush . | . . . Escape Stasis . | . . . Rewire . | . . . Trap . | . . . Miscellaneous . | . . . Route ------- -11/Scrapyard -10/Materials -9/Materials History --------- Turn | Location | Event 8 | -11/Scrapyard | Discovered new exit (range 15) 85 | -11/Scrapyard | Entered Materials 307 | -10/Materials | Build established: Mutant 555 | -10/Materials | Repaired Broken Med. Laser 579 | -10/Materials | Discovered new exit (range 15) 664 | -10/Materials | Core integrity fell below 50% 803 | -10/Materials | Entered another Materials area 803 | -9/Materials | Evolved 2 slots: Propulsion x1, Utility x1 926 | -9/Materials | Self-destructed Last Messages --------------- 00852_ R-06 Scavenger collects Lgt. Ion Engine. 00855_ R-06 Scavenger collects Flight Unit. 00856_ R-06 Scavenger collects Lgt. Ion Engine. 00856_ Acquired 13 matter. 00860_ R-06 Scavenger collects Lgt. Ion Engine. 00862_ S-10 Pest destroyed. 00868_ Acquired 29 matter. 00872_ Acquired 13 matter. 00895_ Y-45 Defender suffers critical hit (Burn). 00895_ Y-45 Defender destroyed. 00898_ G-34 Mercenary destroyed. 00900_ K-01 Serf collects debris. 00904_ G-34 Mercenary suffers critical hit (Burn). 00906_ K-01 Serf collects debris. 00910_ G-34 Mercenary suffers critical hit (Burn). 00910_ G-34 Mercenary destroyed. 00911_ K-01 Serf collects debris. 00916_ W-16 Scout sends out distress signal. 00918_ K-01 Serf collects debris. 00924_ O-16 Technician: "IFF HANDSHAKE FAILED. SECURING TERMINAL." Map ----- +----------------------------------------------------+ | ?????????????????????????????????????????????????? | | ?????????????????????????????????????????????????? | | ?????????????????????????????????????????????????? | | ?????????????????????????????????????????????????? | | ?????????????????????????????????????????????????? | | ?????????????????????????????????######?#####????? | | ?????????????????????????????????# ?# #????? | | ?????????????????????????????????# # #????? | | ?????????????????????????????????#""" # #????? | | ?????????????????????????????????#""" + #????? | | ?????????????????????????????????#""" # #????? | | ?????????????????????????????????# # #????? | | ?????????????????????????????############ ##???? | | ?????????????????????????????# !!! # ###+# | | ?????????????????????????????# !!! # | | ?????????????????????????????# !! + T | | ?????????????????????????????# # | | ?????????????????????????????# """%"""[# ###+# | | ?????????????????????????????# """ """%#######???? | | ?????????????????????????????#[""" """*#?????????? | | ?????????????????????????????# =%!!=[ =#?????????? | | ?????????????????????????????#+##+######?????????? | | ?????????????????##+########## %#??????????????? | | ?????????????????# u #??????????????? | | ?????????????????+ #??????????????? | | ?????????????????# @ #??????????????? | | ?????????????????# T r#??????????????? | | ?????????????????+ o k#??????????????? | | ?????????????????##########b #??????????????? | | ??????????????????????????#g #??????????????? | | ??????????????????????????/ w ?????????????? | | ??????????????????????????# ##+##+###????????????? | | ??????????????????????????# # ? ???????????????? | | ??????????????????????????# # ? ???????????????? | | ??????????????????????????# # ???????????????? | | ??????????????????????????# #? ???????????????? | | ??????????????????????????# #??###???????????????? | | ?????????????????????????? ?????????????????????? | | ??????????????????????????? ?????????????????????? | | ?????????????????????????????????????????????????? | | ?????????????????????????????????????????????????? | | ?????????????????????????????????????????????????? | | ?????????????????????????????????????????????????? | | ?????????????????????????????????????????????????? | | ?????????????????????????????????????????????????? | | ?????????????????????????????????????????????????? | | ?????????????????????????????????????????????????? | | ?????????????????????????????????????????????????? | | ?????????????????????????????????????????????????? | | ?????????????????????????????????????????????????? | +----------------------------------------------------+ Best States ------------- Heat Dissipation 28 Energy Generation 10 Energy Capacity 250 Matter Stores 300 Matter Capacity 300 Sight Range 16 Terrain Scan Density 10 Evasion (%) 55 Offensive Hacking 10 Item Schematics ----------------- None Robot Schematics ------------------ None Fabricated ------------ Nothing Repaired ---------- Med. Laser | 27% | -10/Materials | Broken Studied --------- None Alien Tech Used ----------------- None Achievements -------------- None Challenges ------------ None Game ------ Seed OpticalExoskeletonKatana Manual? 0 Play Time 00:13:34 Cumulative 45.2 hours Start 2025.10.30 @ 13:38:47 End 2025.10.30 @ 17:27:43 Sessions 3 Manual Loads 0 Difficulty Rogue Special Mode None Game No. 210 Rogue 210 Adventurer 0 Explorer 0 Win Type - Total 0 Types 0/0/0/0/0/0/0/0/0/0 Lore% 24 Gallery% 20 Achievement% 12 Wizard Run 0 Options --------- Layout 0 ASCII 1 Keyboard 1 Movement Numpad Keybinds 1 Fullscreen 1 Font 18/X11 Map View 76x50 Zoom Use 0% Tactical HUD 1 Map Filters NONE Filters NONE Steam 1 RUN: d4e86866-2f1a-4592-ac3f-2bf14ebce88b